Cogmind - Beta 13 @@@ ROGUE MODE // 2024.04.22 @ 14:15:58 Player: Gabe+Kate4EVR Result: Destroyed by AG-76908 with Assembled Focal Cannon Performance ------------- Evolutions (1) 500 Regions Visited (5) 1000 Robots Destroyed (17) 85 Value Destroyed (468) 468 Prototype IDs (10) 200 Alien Tech Used (0) 0 Bonus (1711) 1711 TOTAL SCORE: 3964 Bonus ------- Follower Combat Kills 111 Met Imprinter 300 Was Imprinted 300 Destroyed Z-Imprinter 1000 Cogmind --------- Core Integrity 0/400 Matter 300/300 Energy 45/100 System Corruption 0% Temperature Cool (6) Movement Hovering (56) Location -7/Deep Caves Parts ------- > --- POWER (1) -------- Zionite Light DM Reactor > --- PROPULSION (4) --- Zionite Glidesys I Zionite Glidesys I > --- UTILITY (2) ------ Small Storage Unit Targeting Computer > --- WEAPON (2) ------- Zionite Laser-S Zionite Laser-M > --- INVENTORY (8) ---- Zionite Light DM Reactor Experimental Heat Sink Zionite Biocell (600) 0b10 Decoder Chip [Generic] Zionite Weapon Casing Zionite Light Carapace CR-A16's Pointy Stick Self-destruct Interrupter (19) Peak State ------------ > --- POWER ------------ Zionite Light DM Reactor > --- PROPULSION ------- Zionite Glidesys I Zionite Glidesys I Zionite Glidesys I Zionite Glidesys II > --- UTILITY ---------- Small Storage Unit Targeting Computer > --- WEAPON ----------- Zionite Laser-S Zionite Laser-M > --- INVENTORY -------- Zionite Light DM Reactor Experimental Heat Sink Zionite Biocell 0b10 Decoder Chip [Generic] Zionite Weapon Casing Zionite Weapon Casing CR-A16's Pointy Stick Self-destruct Interrupter [Rating: 54] Favorites ----------- Power Light Ion Engine Engine Light Ion Engine Reactor Zionite Light DM Reactor Propulsion Flight Unit Leg Aluminum Leg Hover Unit Zionite Glidesys I Flight Unit Flight Unit Utility Small Storage Unit Device Tractor Beam Storage Small Storage Unit Processor Targeting Computer Protection Zionite Weapon Casing Weapon Barrage Gun Energy Gun Heavy Beamcaster Ballistic Gun Barrage Gun Build | -11 -10 -9 -9 -7 -7 ------- Run | Yrd Mat Mat Min Zio Dee Slots Evolved 2 | . . 2 . . . Power . | . . . . . . Propulsion 2 | . . 2 . . . Utility . | . . . . . . Weapon . | . . . . . . Parts Attached 54 | 7 9 14 . 9 15 Power 7 | 1 . 2 . 3 1 Engine 6 | 1 . 2 . 3 . Core . | . . . . . . Reactor 1 | . . . . . 1 Propulsion 17 | 2 6 2 . 2 5 Treads . | . . . . . . Leg 7 | 2 4 . . . 1 Wheel . | . . . . . . Hover 4 | . . . . . 4 Flight 6 | . 2 2 . 2 . Utility 11 | 1 2 1 . 2 5 Device 2 | . 1 . . . 1 Storage 5 | 1 . . . 1 3 Processor 3 | . 1 1 . 1 . Hackware . | . . . . . . Protection 1 | . . . . . 1 Artifact . | . . . . . . Weapon 19 | 3 1 9 . 2 4 Energy Gun 8 | 1 . 2 . 1 4 Energy Cannon . | . . . . . . Ballistic Gun 11 | 2 1 7 . 1 . Ballistic Cannon . | . . . . . . Launcher . | . . . . . . Special Weapon . | . . . . . . Impact Weapon . | . . . . . . Slashing Weapon . | . . . . . . Piercing Weapon . | . . . . . . Special Melee Weapon . | . . . . . . Unidentified Prototypes 10 | . . 1 . . 9 Parts Lost 7 | . . . . . 7 Power 1 | . . . . . 1 Propulsion 6 | . . . . . 6 Utility . | . . . . . . Weapon . | . . . . . . Highest Loss Streak 4 | . . . . . 4 To Critical Strikes . | . . . . . . Average Slot Usage (%) 94 | . 96 89 100 100 80 Engine 10 | . 14 11 11 11 7 Leg 4 | . 25 . . . . Hover 3 | . . . . . 14 Flight 27 | . 2 34 44 44 10 Storage 9 | . 14 11 11 7 10 Processor 12 | . 9 11 11 14 11 Energy Gun 12 | . 14 11 11 11 13 Ballistic Gun 10 | . 14 11 11 11 8 Naked Turns . | . . . . . . Heaviest Build 24 | 10 11 14 14 21 24 Greatest Support 58 | 20 20 16 16 20 58 Greatest Overweight (x) 5 | . 3 1 . 1 5 Average Overweight (x) . | . . . . . . Largest Inventory Capacity 8 | 8 8 8 8 8 8 Average Capacity 7 | 7 8 8 8 7 7 Most Carried 8 | 2 8 8 7 8 8 Average Carried 6 | 1 6 7 7 6 7 Final Capacity 8 | 8 8 8 8 8 8 Final Carried 8 | 2 8 7 7 8 8 Class Distribution -------------------- 48% | Mutant 27% | Derelict-Mutant 15% | Sprinter 8% | Scavenger-Mutant Dominant Class ---------------- Mutant | -10/Materials Mutant | -9/Materials Sprinter | -9/Mines Derelict-Mutant | -7/Zion Scavenger-Mutant | -7/Deep Caves Resources | -11 -10 -9 -9 -7 -7 ----------- Run | Yrd Mat Mat Min Zio Dee Matter Collected 866 | 220 201 157 . 52 236 Remotely 81 | . 81 . . . . Salvage Created 831 | . 431 195 . . 205 Parts 40 | . 19 8 . . 13 Haulers Intercepted 2 | . 1 1 . . . Recyclers Shooed . | . . . . . . Parts Field Recycled . | . . . . . . Retrieved Matter . | . . . . . . Parts Self-Destructed . | . . . . . . Prevented . | . . . . . . Kills | -11 -10 -9 -9 -7 -7 ------- Run | Yrd Mat Mat Min Zio Dee Combat Hostiles Destroyed 10 | . 5 3 . . 2 Guns 10 | . 5 3 . . 2 Classes Destroyed 8 | . 5 1 . . 2 Worker 1 | . 1 . . . . Hauler 2 | . 1 1 . . . Recycler 1 | . 1 . . . . Watcher 3 | . 2 1 . . . Grunt 7 | . 5 2 . . . Sentry 1 | . . 1 . . . Z-Technician 4 | . . . . . 4 Z-Light 2 | . . . . . 2 Best Kill Streak 4 | . 3 2 . . 4 Combat Bots Only 2 | . 2 1 . . 1 Max Kills in Single Turn 4 | . 1 1 . . 4 Gunslinging . | . . . . . . Exploded . | . . . . . . Melee . | . . . . . . Uniques/NPCs Destroyed 1 | . . . . . 1 Z-Imprinter (-7/Deep Caves) Combat | -11 -10 -9 -9 -7 -7 -------- Run | Yrd Mat Mat Min Zio Dee Hostile Shots Fired 59 | . 31 21 . . 7 Missed 15 | . 8 7 . . . Damage Taken 1094 | . 290 163 . . 641 Core 480 | . 67 43 . . 370 Absorbed by Shields . | . . . . . . Core Remaining (%) 86 | 100 73 . . . . Volleys Fired 81 | . 45 24 . . 12 Largest 2 | . 2 2 . . 2 Hottest 133 | . 60 85 . . 133 Shots Fired 152 | . 84 44 . . 24 Gun 152 | . 84 44 . . 24 Cannon . | . . . . . . Launcher . | . . . . . . Special . | . . . . . . Kinetic 80 | . 45 24 . . 11 Thermal 72 | . 39 20 . . 13 Explosive . | . . . . . . Electromagnetic . | . . . . . . Robot Hit Streak 11 | . 11 8 . . 7 Robot Miss Streak 9 | . 4 9 . . 2 Penetration Max . | . . . . . . Secondary Targets . | . . . . . . Shots Hit Robots 90 | . 54 20 . . 16 Core Hits 51 | . 23 20 . . 8 Critical Kills . | . . . . . . Critical Parts Destroyed . | . . . . . . Critical Strikes . | . . . . . . Melee Attacks . | . . . . . . Impact . | . . . . . . Slashing . | . . . . . . Piercing . | . . . . . . Sneak Attacks . | . . . . . . Combat Hostiles . | . . . . . . Follow-up Attacks . | . . . . . . Damage Inflicted 2881 | . 506 279 . . 2096 Guns 1121 | . 506 279 . . 336 Cannons . | . . . . . . Explosions 1760 | . . . . . 1760 Melee . | . . . . . . Ramming . | . . . . . . Kinetic 418 | . 207 78 . . 133 Thermal 2463 | . 299 201 . . 1963 Explosive . | . . . . . . Electromagnetic . | . . . . . . Impact . | . . . . . . Slashing . | . . . . . . Piercing . | . . . . . . Highest Corruption 2 | . 2 . . . . Average Corruption 2 | . 2 . . . . Corruption Purged . | . . . . . . Corruption Blocked . | . . . . . . Effects 5 | . 5 . . . . Matter Fused 2 | . 2 . . . . Heat Flow Errors 1 | . 1 . . . . Energy Discharges 1 | . 1 . . . . Data Loss (minor) 1 | . 1 . . . . Overload Shots . | . . . . . . Overflow Damage 620 | . . . . . 620 Projectiles . | . . . . . . Explosions 620 | . . . . . 620 Melee . | . . . . . . Knockbacks . | . . . . . . Impact . | . . . . . . Kinetic . | . . . . . . Secondary . | . . . . . . Self-Inflicted Damage 350 | . . . . . 350 Shots 1 | . . . . . 1 Rammed . | . . . . . . Targets Rammed . | . . . . . . Kicked . | . . . . . . Crushed . | . . . . . . Highest Temperature 300 | . 195 189 . . 300 Average Temperature 80 | . 42 60 . . 148 Received Heat Transfer 312 | . 174 87 . . 51 Effects 3 | . . . . . 3 Energy Bleed 2 | . . . . . 2 Interference 1 | . . . . . 1 Siege Activations . | . . . . . . Robots Corrupted . | . . . . . . Combat Hostiles . | . . . . . . Parts Fried . | . . . . . . Impact Corruptions . | . . . . . . Robots Melted . | . . . . . . Combat Hostiles . | . . . . . . Parts Melted 1 | . . 1 . . . Heat Transferred 1299 | . 675 328 . . 296 Parts Sabotaged . | . . . . . . Parts Stolen . | . . . . . . Parts Stripped . | . . . . . . Power Chain Reactions . | . . . . . . Alert | -11 -10 -9 -9 -7 -7 ------- Run | Yrd Mat Mat Min Zio Dee Peak Influence 204 | . 199 204 79 . . Initial 79 | . . 15 79 . . Average 74 | . 79 94 79 . . Maximum Alert Level 1 | . . 1 . . . Low Security (%) 99 | 100 100 97 100 . . Level 1 . | . . 2 . . . Level 2 . | . . . . . . Level 3 . | . . . . . . Level 4 . | . . . . . . Level 5 . | . . . . . . High Security . | . . . . . . Max Security . | . . . . . . Squads Dispatched 2 | . 1 1 . . . Investigation . | . . . . . . Extermination . | . . . . . . Reinforcement 2 | . 1 1 . . . Assault . | . . . . . . Garrison . | . . . . . . Intercept . | . . . . . . Searches Triggered . | . . . . . . Construction Impeded . | . . . . . . Haulers Reinforced . | . . . . . . Active Scanning Responses . | . . . . . . Cargo Convoy Interrupts . | . . . . . . Stealth | -11 -10 -9 -9 -7 -7 --------- Run | Yrd Mat Mat Min Zio Dee Distress Signals 5 | . 2 3 . . . Communications Jammed . | . . . . . . Distress Signals . | . . . . . . Times Spotted 27 | . 11 12 . . 4 Peak Tracking Total 6 | . 3 6 . . 2 Tactical Retreats 3 | . 2 1 . . . Traps | -11 -10 -9 -9 -7 -7 ------- Run | Yrd Mat Mat Min Zio Dee Traps Triggered 1 | . 1 . . . . Indirectly . | . . . . . . Trap Hack Attempts . | . . . . . . Triggered . | . . . . . . Disarmed . | . . . . . . Reprogrammed . | . . . . . . Reused . | . . . . . . Traps Extracted . | . . . . . . Installed . | . . . . . . Triggered . | . . . . . . Machines | -11 -10 -9 -9 -7 -7 ---------- Run | Yrd Mat Mat Min Zio Dee Machines Disabled 2 | . . . . . 2 Max in Single Turn 1 | . . . . . 1 Machines Repaired . | . . . . . . Machines Dismantled . | . . . . . . Machines Sabotaged . | . . . . . . Overloaded Fab Kills . | . . . . . . Hacking | -11 -10 -9 -9 -7 -7 --------- Run | Yrd Mat Mat Min Zio Dee Machines Accessed . | . . . . . . Terminals . | . . . . . . Fabricators . | . . . . . . Repair Stations . | . . . . . . Recycling Units . | . . . . . . Scanalyzers . | . . . . . . Garrison Access . | . . . . . . Total Hacks . | . . . . . . Successful . | . . . . . . Failed . | . . . . . . Catastrophic . | . . . . . . Database Lockouts . | . . . . . . Manual 5 | . . . . 5 . Terminals . | . . . . . . Fabricators . | . . . . . . Repair Stations . | . . . . . . Recycling Units . | . . . . . . Scanalyzers . | . . . . . . Garrison Access . | . . . . . . Terminal Hacks . | . . . . . . Fabricator Hacks . | . . . . . . Repair Station Hacks . | . . . . . . Recycling Unit Hacks . | . . . . . . Scanalyzer . | . . . . . . Garrison Access Hacks . | . . . . . . Unauthorized Hacks . | . . . . . . Terminals . | . . . . . . Fabricators . | . . . . . . Repair Stations . | . . . . . . Recycling Units . | . . . . . . Scanalyzers . | . . . . . . Garrison Access . | . . . . . . Data Cores Recovered . | . . . . . . Used . | . . . . . . Hacking Detections . | . . . . . . Full Trace Events . | . . . . . . Feedback Events . | . . . . . . Feedback Blocked . | . . . . . . Robot Schematics Acquired . | . . . . . . Robots Built . | . . . . . . Authchips . | . . . . . . Time . | . . . . . . Total Robot Build Rating . | . . . . . . Part Schematics Acquired . | . . . . . . Parts Built . | . . . . . . Authchips . | . . . . . . Time . | . . . . . . Total Part Build Rating . | . . . . . . Parts Repaired . | . . . . . . Time . | . . . . . . Parts Recycled . | . . . . . . Recycled Matter . | . . . . . . Retrieved Matter . | . . . . . . Retrieved Components . | . . . . . . Parts Scanalyzed . | . . . . . . Part Schematics Acquired . | . . . . . . Parts Damaged . | . . . . . . Bothacking | -11 -10 -9 -9 -7 -7 ------------ Run | Yrd Mat Mat Min Zio Dee Used RIF Installer . | . . . . . . Robots Hacked . | . . . . . . Non-combat . | . . . . . . Combat . | . . . . . . Robot Hacks Applied . | . . . . . . Relay Couplers Released . | . . . . . . Fabnet Peak Effective % . | . . . . . . Robots Rewired . | . . . . . . Allies Hacked . | . . . . . . Hacks Repelled . | . . . . . . Allies | -11 -10 -9 -9 -7 -7 -------- Run | Yrd Mat Mat Min Zio Dee Total Allies 7 | . . . . 6 1 Largest Group 6 | . . . . 6 3 Highest-Rated Group 351 | . . . . 351 311 Highest-Rated Ally 119 | . . . . 96 119 Total Orders . | . . . . . . Ally Attacks 44 | . . . . . 44 Total Damage 1086 | . . . . . 1086 Kills 5 | . . . . . 5 Allies Corrupted . | . . . . . . Allies Melted . | . . . . . . Intel | -11 -10 -9 -9 -7 -7 ------- Run | Yrd Mat Mat Min Zio Dee Robot Analysis Total . | . . . . . . Derelict Logs Recovered 1 | . . . 1 . . Drone Launches . | . . . . . . Drone Recoveries . | . . . . . . Exploration | -11 -10 -9 -9 -7 -7 ------------- Run | Yrd Mat Mat Min Zio Dee Turns Passed 2699 | 89 519 209 10 1325 547 Spaces Moved 3570 | 68 298 261 27 2237 679 Core 29 | 5 1 . . . 23 Treads . | . . . . . . Legs 332 | 63 262 . . . 7 Wheels . | . . . . . . Hover 414 | . . . . . 414 Flight 2795 | . 35 261 27 2237 235 Fastest Speed 31 | 50 117 31 31 31 34 Average Speed 47 | 114 120 34 31 33 62 Slowest Speed 300 | 120 200 114 31 116 300 Overloaded Moves . | . . . . . . Propulsion Burnouts . | . . . . . . Robots Hopped 1 | . . 1 . . . Cave-ins Triggered . | . . . . . . Exploration Rate (%) 43 | 5 50 33 3 94 75 Regions Visited 5 Branch Regions 3 Pre-discovered Areas . | . . . . . . Known Exits Taken 1 | . 1 . . . . Unknown Exits Taken 4 | 1 . 1 1 1 . Scrap Searched 2 | . . . . 2 . Spaces Dug . | . . . . . . Terrain Destroyed 2 | . . . . . 2 Melee . | . . . . . . Projectile 2 | . . . . . 2 AOE . | . . . . . . Terrain Rammed . | . . . . . . Walls Destroyed . | . . . . . . Machines Disabled . | . . . . . . Actions | -11 -10 -9 -9 -7 -7 --------- Run | Yrd Mat Mat Min Zio Dee Total 4438 | 76 382 343 27 2823 787 Wait 654 | . 21 27 1 549 56 Move 3563 | 67 297 258 26 2236 679 Hop 1 | . . 1 . . . Pick Up 31 | 1 4 4 . 13 9 Fast Attach 36 | 7 4 7 . 3 15 Attach 1 | . . 1 . . . Detach 4 | 1 1 1 . 1 . Swap 17 | . 5 6 . 6 . Drop 50 | . 5 14 . 15 16 Fire 81 | . 45 24 . . 12 Melee . | . . . . . . Ram . | . . . . . . Kick . | . . . . . . Crush . | . . . . . . Escape Stasis . | . . . . . . Rewire . | . . . . . . Trap . | . . . . . . Miscellaneous . | . . . . . . Route ------- -11/Scrapyard -10/Materials (discovered 2 exits: *Mat / [*Min]) -9/Materials -9/Mines (discovered 2 exits: Exi / *Zio) -7/Zion (discovered 2 exits: [*Dee] / [*Pro]) -7/Deep Caves History --------- Turn | Location | Event 9 | -11/Scrapyard | Discovered new exit (range 16) 90 | -11/Scrapyard | Entered Materials 317 | -10/Materials | Build established: Mutant 414 | -10/Materials | Discovered new exit (range 6) 505 | -10/Materials | Discovered new exit (range 5) 608 | -10/Materials | Identified exit to Materials 609 | -10/Materials | Entered another Materials area 609 | -9/Materials | Evolved 2 slots: Propulsion x2 685 | -9/Materials | Discovered new exit (range 13) 798 | -9/Materials | Met 8R-AWN 818 | -9/Materials | Entered Mines 819 | -9/Mines | A Derelict revealed a hidden shortcut to a safe place 819 | -9/Mines | Followed 8R-AWN into the Mines 823 | -9/Mines | Identified exit to Exiles 828 | -9/Mines | Entered Zion 834 | -7/Zion | Found CR-A16's Pointy Stick 845 | -7/Zion | Given A8's code to call for help 901 | -7/Zion | Imprinted 903 | -7/Zion | Declared Zion's savior 925 | -7/Zion | Loaded intel: 5 derelict terminal locations 964 | -7/Zion | Received a hallucinogenic algorithm 996 | -7/Zion | Acquired unknown access codes intercepted by a Zionite 1094 | -7/Zion | Build established: Sprinter 1223 | -7/Zion | Discovered new exit (range 10) 1740 | -7/Zion | Build established: Derelict-Mutant 1955 | -7/Zion | Enhanced Grunt warped into view, answering call for help 1966 | -7/Zion | Enhanced Grunt warped into view, answering call for help 2067 | -7/Zion | Opened final containment barrier to the Deep Caves 2073 | -7/Zion | Discovered new exit (range 3) 2073 | -7/Zion | Saw the warning signs outside the Deep Caves entrance 2153 | -7/Zion | Entered Deep Caves 2153 | -7/Deep Caves | Accompanied by 2 allies 2155 | -7/Deep Caves | Met 5H-AD0 2280 | -7/Deep Caves | Z-Facility disabled 2283 | -7/Deep Caves | Core integrity fell below 50% 2313 | -7/Deep Caves | Lost 4 parts (4n) 2324 | -7/Deep Caves | Allies destroyed Z-Imprinter 2384 | -7/Deep Caves | Found Prototype Protection 2384 | -7/Deep Caves | Identified Zio. Weapon Casing 2391 | -7/Deep Caves | Found Zio. Weapon Casing 2395 | -7/Deep Caves | Found Zio. Weapon Casing 2671 | -7/Deep Caves | Spotted AG-76908 2674 | -7/Deep Caves | Core integrity fell below 20% 2700 | -7/Deep Caves | Destroyed by AG-76908 with Assembled Focal Cannon Last Messages --------------- 02539_ Identified Zio. Light DM Reactor. 02543_ Acquired Prototype Hover Unit. 02543_ Identified Zio. Glidesys I. 02548_ Acquired Zio. Glidesys I. 02551_ Acquired 40 matter. 02553_ Dropped Coolant Injector. 02554_ Acquired Zio. Light DM Reactor. 02558_ Dropped Zio. Laser-M. 02559_ Acquired Prototype Energy Gun. 02559_ Identified Zio. Laser-S. 02561_ Dropped Zio. Laser-S. 02561_ Acquired Zio. Laser-M. 02563_ Dropped Barrage Gun. 02564_ Acquired Zio. Laser-S. 02565_ Acquired 30 matter. 02568_ Dropped Zio. Weapon Casing. 02568_ Acquired Prototype Protection. 02673_ Zio. Glidesys II destroyed. 02673_ Zio. Glidesys I destroyed. 02700_ AG-76908: "DSI9AT1D G8OHIBQ29FWG 26R186 QD12WHW8W33 TDK1 81FTS" Map ----- +----------------------------------------------------+ | ????????????????????# ##???## ### | | ????????????????????## #????# ## | | ?????????????????????# #######????# ## | | ?????????????????????## ##??????????# ## | | ??????????????????????# #?????????? # ### | | ??????????????????????# #????????? # #?# | | ??????????????????????# #???????? # #### ### | | ??????????????????????# #???????######???####?# | | ??????????????????????# #????????????????????# | | ???????????????######## #???????#####???????# | | ??????????????## ## #??????## #???????# | | ?????? ???# #??????# ##??????# | | ???? ] ??# ## ######## #??????## | | ? ! #??# #### ##??????# | | ##?# #??## #####??## | | ! #?# ##???## ###### ##??# | | #?# ##?????# #????# #### | | ] #?##???????# ###### ## | | / ] #??????????# ## ## | | / #??????????# # | | #?????????## # | | #????????## # | | ##??????## # | | / ! #????###h g ##### | | ###### ####### | | ## @ ### ## | | # #; ##### | | G #### ##???##### | | ! ! #??## #????????? | | #???## ##????????? | | #### #????## #?????????? | | #??## #????# #?????????? | | ##???# #???# ### #?????????? | | # # #????# #?? ##?## ##?????????? | | #### ## ## ##????# #?# ###???###??????????? | | ???# ?# ?###?????## ##?## ##??????????????????? | | ???#??# ???????????####???###????????????????????? | | ???????#?????????????????????????????????????????? | | | | | | | | | | | | | | | | | | | | | | | | | +----------------------------------------------------+ Best States ------------- Heat Dissipation 54 Energy Generation 27 Energy Capacity 770 Matter Stores 300 Matter Capacity 300 Sight Range 16 Terrain Scan Density 10 Weapon Shielding 100 Evasion (%) 63 Targeting Accuracy 5 Item Schematics ----------------- None Robot Schematics ------------------ None Fabricated ------------ Nothing Alien Tech Used ----------------- None Achievements -------------- Are We The Baddies? Challenges ------------ None Game ------ Seed GravmagLinearReplicator Manual? 0 Play Time 00:47:42 Cumulative 112.2 hours Start 2024.04.22 @ 08:58:05 End 2024.04.22 @ 14:15:58 Sessions 1 Manual Loads 0 Difficulty Rogue Special Mode None Game No. 232 Rogue 232 Adventurer 0 Explorer 0 Win Type - Total 0 Types 0/0/0/0/0/0/0/0/0 Lore% 33 Gallery% 52 Achievement% 36 Wizard Run 0 Options --------- Layout 0 ASCII 0 Keyboard 1 Movement Numpad Keybinds 0 Fullscreen 2 Font 18/X11 Map View 76x50 Zoom Use 0% Tactical HUD 1 Map Filters NONE Filters NONE Steam 1 RUN: c777a0e1-367d-4cab-a37a-d2e10741c95a